[Event "Early-Titled-Tuesday-Blitz-October-10-2023"]
[Site "Chess.com"]
[Date "2023.10.10"]
[Round "10"]
[White "parintele_chess"]
[Black "Mr_ruthless"]
[Result "0-1"]
[WhiteElo "2270"]
[BlackElo "2464"]
[TimeControl "180+1"]
[EndTime "9:56:01 PDT"]
[Termination "Mr_ruthless won on time"]

1. d4 {[%clk 0:02:59.8]} 1... d5 {[%clk 0:02:58.1]} 2. Bf4 {[%clk 0:03:00.1]}
2... Nf6 {[%clk 0:02:56.2]} 3. Nf3 {[%clk 0:02:57.4]} 3... c5 {[%clk 0:02:56.9]}
4. e3 {[%clk 0:02:54.8]} 4... Nc6 {[%clk 0:02:57.4]} 5. Nbd2 {[%clk 0:02:54.9]}
5... e6 {[%clk 0:02:52.6]} 6. c3 {[%clk 0:02:53.2]} 6... Bd6 {[%clk 0:02:51.3]}
7. Bg3 {[%clk 0:02:53.6]} 7... O-O {[%clk 0:02:51.1]} 8. Bd3 {[%clk 0:02:54.1]}
8... Re8 {[%clk 0:02:51.7]} 9. Ne5 {[%clk 0:02:48]} 9... Bxe5 {[%clk 0:02:52.2]}
10. dxe5 {[%clk 0:02:48.9]} 10... Nd7 {[%clk 0:02:52.8]} 11. Qh5 {[%clk
0:02:42.1]} 11... g6 {[%clk 0:02:50.6]} 12. Qh6 {[%clk 0:02:39.3]} 12... Ndxe5
{[%clk 0:02:44.9]} 13. Bc2 {[%clk 0:02:39.9]} 13... Qf6 {[%clk 0:02:25.3]} 14.
Bh4 {[%clk 0:02:38.5]} 14... Ng4 {[%clk 0:02:03.5]} 15. Bxf6 {[%clk 0:02:22.5]}
15... Nxh6 {[%clk 0:02:03.9]} 16. Bg5 {[%clk 0:02:00.4]} 16... Kg7 {[%clk
0:02:01]} 17. h4 {[%clk 0:02:00.9]} 17... f6 {[%clk 0:01:55.8]} 18. Bf4 {[%clk
0:02:00.9]} 18... e5 {[%clk 0:01:52.7]} 19. Bxh6+ {[%clk 0:01:54.8]} 19... Kxh6
{[%clk 0:01:52.3]} 20. h5 {[%clk 0:01:53.7]} 20... Kg7 {[%clk 0:01:30.7]} 21.
O-O-O {[%clk 0:01:47.8]} 21... Be6 {[%clk 0:01:23.3]} 22. Nb3 {[%clk 0:01:35.3]}
22... b6 {[%clk 0:01:21.2]} 23. Rh2 {[%clk 0:01:16.7]} 23... Rad8 {[%clk
0:00:45.4]} 24. hxg6 {[%clk 0:01:12.3]} 24... hxg6 {[%clk 0:00:41]} 25. Rdh1
{[%clk 0:01:12.8]} 25... Rh8 {[%clk 0:00:39.5]} 26. Rxh8 {[%clk 0:01:12.9]}
26... Rxh8 {[%clk 0:00:40.4]} 27. Rxh8 {[%clk 0:01:13]} 27... Kxh8 {[%clk
0:00:41.3]} 28. Bxg6 {[%clk 0:01:13.3]} 28... f5 {[%clk 0:00:36]} 29. f4 {[%clk
0:01:09.1]} 29... e4 {[%clk 0:00:26.2]} 30. Be8 {[%clk 0:01:06.1]} 30... Ne7
{[%clk 0:00:25.9]} 31. Nd2 {[%clk 0:00:52]} 31... Kg7 {[%clk 0:00:26.2]} 32. Nf1
{[%clk 0:00:51.6]} 32... Bf7 {[%clk 0:00:18.9]} 33. Bd7 {[%clk 0:00:44]} 33...
Kf6 {[%clk 0:00:19]} 34. Ng3 {[%clk 0:00:36.3]} 34... Be6 {[%clk 0:00:19.3]} 35.
Nh5+ {[%clk 0:00:33.7]} 35... Kf7 {[%clk 0:00:17.5]} 36. Bxe6+ {[%clk
0:00:29.5]} 36... Kxe6 {[%clk 0:00:18.4]} 37. Ng7+ {[%clk 0:00:30]} 37... Kf7
{[%clk 0:00:18.1]} 38. Nh5 {[%clk 0:00:30]} 38... Kg6 {[%clk 0:00:18.7]} 39. Ng3
{[%clk 0:00:28.4]} 39... Ng8 {[%clk 0:00:19.3]} 40. Kd2 {[%clk 0:00:24.4]} 40...
Nf6 {[%clk 0:00:19.6]} 41. Ke2 {[%clk 0:00:22.6]} 41... b5 {[%clk 0:00:16.4]}
42. Nh1 {[%clk 0:00:20.6]} 42... Kh5 {[%clk 0:00:15.9]} 43. Nf2 {[%clk
0:00:17.3]} 43... Kh4 {[%clk 0:00:16]} 44. Nh3 {[%clk 0:00:16.9]} 44... Nh7
{[%clk 0:00:15.5]} 45. Kf2 {[%clk 0:00:16.1]} 45... Kg4 {[%clk 0:00:14.7]} 46.
b4 {[%clk 0:00:11.9]} 46... cxb4 {[%clk 0:00:13.5]} 47. cxb4 {[%clk 0:00:12.8]}
47... Kh4 {[%clk 0:00:12]} 48. Ke2 {[%clk 0:00:09]} 48... Kg3 {[%clk 0:00:11.4]}
49. Ng5 {[%clk 0:00:09.6]} 49... Nf8 {[%clk 0:00:06.5]} 50. Nf7 {[%clk
0:00:06.3]} 50... Ng6 {[%clk 0:00:06]} 51. Nd6 {[%clk 0:00:06.2]} 51... Ne7
{[%clk 0:00:06.5]} 52. Nxb5 {[%clk 0:00:05.1]} 52... a6 {[%clk 0:00:06.2]} 53.
Nc7 {[%clk 0:00:04.9]} 53... Kxg2 {[%clk 0:00:05.9]} 54. Nxa6 {[%clk 0:00:05.4]}
54... Nc6 {[%clk 0:00:05.7]} 55. a3 {[%clk 0:00:04.8]} 55... d4 {[%clk
0:00:05.9]} 56. exd4 {[%clk 0:00:04.8]} 56... Nxd4+ {[%clk 0:00:06.4]} 57. Ke3
{[%clk 0:00:05.7]} 57... Nc2+ {[%clk 0:00:06.8]} 58. Kd2 {[%clk 0:00:05.2]}
58... Nxa3 {[%clk 0:00:07.1]} 59. Nb8 {[%clk 0:00:05.5]} 59... Kf3 {[%clk
0:00:07.5]} 60. Nd7 {[%clk 0:00:05.4]} 60... Kxf4 {[%clk 0:00:07.9]} 61. Kc3
{[%clk 0:00:05.6]} 61... Kf3 {[%clk 0:00:07.2]} 62. Ne5+ {[%clk 0:00:05.3]}
62... Ke2 {[%clk 0:00:07.5]} 63. Kb3 {[%clk 0:00:04]} 63... Nb5 {[%clk 0:00:07]}
64. Kc4 {[%clk 0:00:04.6]} 64... Nc7 {[%clk 0:00:07.3]} 65. Kc5 {[%clk
0:00:04.1]} 65... Na6+ {[%clk 0:00:06.2]} 66. Kb5 {[%clk 0:00:04.3]} 66... Nxb4
{[%clk 0:00:06.8]} 67. Kxb4 {[%clk 0:00:05.2]} 67... f4 {[%clk 0:00:07.5]} 68.
Kc3 {[%clk 0:00:05.8]} 68... f3 {[%clk 0:00:08]} 69. Ng4 {[%clk 0:00:04.6]}
69... e3 {[%clk 0:00:07.7]} 70. Kd4 {[%clk 0:00:03.7]} 70... f2 {[%clk 0:00:08]}
71. Nxe3 {[%clk 0:00:04.1]} 71... Kf3 {[%clk 0:00:06.6]} 0-1

[Event "Early-Titled-Tuesday-Blitz-October-10-2023"]
[Site "Chess.com"]
[Date "2023.10.10"]
[Round "10"]
[White "fu24"]
[Black "GalaxyRoman"]
[Result "1/2-1/2"]
[WhiteElo "2641"]
[BlackElo "2792"]
[TimeControl "180+1"]
[EndTime "9:57:15 PDT"]
[Termination "Game drawn - insufficient material"]

1. d4 {[%clk 0:03:00.9]} 1... Nf6 {[%clk 0:02:56]} 2. Bf4 {[%clk 0:02:55.9]}
2... b6 {[%clk 0:02:54]} 3. e3 {[%clk 0:02:53.7]} 3... Bb7 {[%clk 0:02:54.4]} 4.
h3 {[%clk 0:02:53.5]} 4... g6 {[%clk 0:02:54.8]} 5. Nf3 {[%clk 0:02:53.9]} 5...
Bg7 {[%clk 0:02:55.3]} 6. Be2 {[%clk 0:02:54.3]} 6... O-O {[%clk 0:02:55.9]} 7.
c4 {[%clk 0:02:54.1]} 7... d6 {[%clk 0:02:56.4]} 8. Nc3 {[%clk 0:02:54]} 8...
Nbd7 {[%clk 0:02:56.6]} 9. O-O {[%clk 0:02:53.5]} 9... Re8 {[%clk 0:02:57.1]}
10. Bh2 {[%clk 0:02:52.6]} 10... e5 {[%clk 0:02:54]} 11. b4 {[%clk 0:02:50.5]}
11... Qe7 {[%clk 0:02:48.9]} 12. Re1 {[%clk 0:02:49.1]} 12... Rac8 {[%clk
0:02:39.4]} 13. a4 {[%clk 0:02:43.7]} 13... c5 {[%clk 0:02:33.7]} 14. bxc5
{[%clk 0:02:42.3]} 14... bxc5 {[%clk 0:02:33.5]} 15. d5 {[%clk 0:02:42.2]} 15...
a6 {[%clk 0:02:27.1]} 16. Rb1 {[%clk 0:02:41.4]} 16... Ba8 {[%clk 0:02:26.9]}
17. a5 {[%clk 0:02:37.6]} 17... h6 {[%clk 0:02:22.2]} 18. Na4 {[%clk 0:02:33]}
18... Ne4 {[%clk 0:02:20.4]} 19. Nd2 {[%clk 0:02:32.5]} 19... Ndf6 {[%clk
0:02:05.3]} 20. Nxe4 {[%clk 0:02:26]} 20... Nxe4 {[%clk 0:02:06.2]} 21. Bd3
{[%clk 0:02:24.1]} 21... Nf6 {[%clk 0:01:59.8]} 22. e4 {[%clk 0:02:22.2]} 22...
Nh5 {[%clk 0:01:59]} 23. Rb6 {[%clk 0:02:15.1]} 23... Bb7 {[%clk 0:01:45]} 24.
Qb3 {[%clk 0:02:13.9]} 24... Rc7 {[%clk 0:01:44.1]} 25. Rb1 {[%clk 0:02:13.3]}
25... Bc8 {[%clk 0:01:43]} 26. Rb8 {[%clk 0:02:02.6]} 26... Qg5 {[%clk
0:01:37.5]} 27. Bf1 {[%clk 0:01:56.7]} 27... Bd7 {[%clk 0:01:19.1]} 28. Rxe8+
{[%clk 0:01:50]} 28... Bxe8 {[%clk 0:01:20]} 29. Qb8 {[%clk 0:01:49.9]} 29...
Qe7 {[%clk 0:01:20.3]} 30. Nc3 {[%clk 0:01:46.2]} 30... Nf6 {[%clk 0:01:08.7]}
31. Rb6 {[%clk 0:01:43.1]} 31... Bf8 {[%clk 0:01:01.1]} 32. Qa8 {[%clk
0:01:18.7]} 32... Ra7 {[%clk 0:00:57.7]} 33. Qc8 {[%clk 0:01:15.5]} 33... Qd7
{[%clk 0:00:36.5]} 34. Qxd7 {[%clk 0:01:11.8]} 34... Nxd7 {[%clk 0:00:35.4]} 35.
Rb2 {[%clk 0:01:09.5]} 35... Be7 {[%clk 0:00:35.2]} 36. f4 {[%clk 0:00:59.7]}
36... Bf6 {[%clk 0:00:30.6]} 37. fxe5 {[%clk 0:00:57.3]} 37... Nxe5 {[%clk
0:00:21.8]} 38. Rb8 {[%clk 0:00:56.5]} 38... Kf8 {[%clk 0:00:18.2]} 39. Na4
{[%clk 0:00:56.1]} 39... Ke7 {[%clk 0:00:16.6]} 40. Nb6 {[%clk 0:00:55.6]} 40...
Bd7 {[%clk 0:00:15.9]} 41. Be2 {[%clk 0:00:50.9]} 41... h5 {[%clk 0:00:15.2]}
42. Bf4 {[%clk 0:00:46.7]} 42... Bg7 {[%clk 0:00:06.1]} 43. Kf2 {[%clk
0:00:45.8]} 43... Bf6 {[%clk 0:00:06.3]} 44. Bd1 {[%clk 0:00:30.1]} 44... Bg7
{[%clk 0:00:04.9]} 45. Ke3 {[%clk 0:00:29]} 45... Bf6 {[%clk 0:00:03.7]} 46. Ba4
{[%clk 0:00:28.9]} 46... Bxa4 {[%clk 0:00:03.3]} 47. Nc8+ {[%clk 0:00:29]} 47...
Kd7 {[%clk 0:00:03.4]} 48. Nxa7 {[%clk 0:00:29.9]} 48... Nxc4+ {[%clk
0:00:03.7]} 49. Kf2 {[%clk 0:00:29.2]} 49... Nxa5 {[%clk 0:00:03.9]} 50. Rb6
{[%clk 0:00:24.3]} 50... Nc4 {[%clk 0:00:04.1]} 51. Rb7+ {[%clk 0:00:24.6]}
51... Ke8 {[%clk 0:00:03.6]} 52. Nc6 {[%clk 0:00:24.6]} 52... Kf8 {[%clk
0:00:02]} 53. Ra7 {[%clk 0:00:21.3]} 53... Bc2 {[%clk 0:00:01.9]} 54. Kf3 {[%clk
0:00:19.3]} 54... g5 {[%clk 0:00:01.4]} 55. Bc1 {[%clk 0:00:17.7]} 55... g4+
{[%clk 0:00:01.7]} 56. hxg4 {[%clk 0:00:17.7]} 56... hxg4+ {[%clk 0:00:02.6]}
57. Kf4 {[%clk 0:00:16.7]} 57... Kg7 {[%clk 0:00:03.1]} 58. Rxa6 {[%clk
0:00:15.2]} 58... Be5+ {[%clk 0:00:02.9]} 59. Nxe5 {[%clk 0:00:14.9]} 59...
dxe5+ {[%clk 0:00:03.8]} 60. Kxg4 {[%clk 0:00:15.1]} 60... Bxe4 {[%clk
0:00:03.6]} 61. d6 {[%clk 0:00:15.6]} 61... Bd5 {[%clk 0:00:02]} 62. g3 {[%clk
0:00:11.5]} 62... Be6+ {[%clk 0:00:02.4]} 63. Kg5 {[%clk 0:00:11.4]} 63... f6+
{[%clk 0:00:02.5]} 64. Kh5 {[%clk 0:00:11.4]} 64... Kf7 {[%clk 0:00:01.7]} 65.
Ra7+ {[%clk 0:00:10.7]} 65... Kf8 {[%clk 0:00:02.4]} 66. d7 {[%clk 0:00:11.3]}
66... Ke7 {[%clk 0:00:02.5]} 67. Ba3 {[%clk 0:00:11.6]} 67... Bxd7 {[%clk
0:00:02.6]} 68. Bxc5+ {[%clk 0:00:11.6]} 68... Ke6 {[%clk 0:00:03.3]} 69. Ra6+
{[%clk 0:00:11.9]} 69... Kf5 {[%clk 0:00:03.5]} 70. Be7 {[%clk 0:00:12.3]} 70...
Be6 {[%clk 0:00:03.5]} 71. g4+ {[%clk 0:00:11.3]} 71... Kf4 {[%clk 0:00:04]} 72.
Rxe6 {[%clk 0:00:11.9]} 72... f5 {[%clk 0:00:04.9]} 73. gxf5 {[%clk 0:00:11.9]}
73... Kxf5 {[%clk 0:00:05.3]} 74. Rf6+ {[%clk 0:00:12.3]} 74... Ke4 {[%clk
0:00:05.8]} 75. Kg4 {[%clk 0:00:12.6]} 75... Ne3+ {[%clk 0:00:05.3]} 76. Kg5
{[%clk 0:00:13.2]} 76... Nd5 {[%clk 0:00:05.5]} 77. Rf7 {[%clk 0:00:13]} 77...
Nf4 {[%clk 0:00:05.6]} 78. Bf6 {[%clk 0:00:12.9]} 78... Nd3 {[%clk 0:00:05.4]}
79. Re7 {[%clk 0:00:13.1]} 79... Kd4 {[%clk 0:00:04.9]} 80. Rd7+ {[%clk
0:00:12.3]} 80... Ke4 {[%clk 0:00:05.4]} 81. Bh8 {[%clk 0:00:11]} 81... Ke3
{[%clk 0:00:05]} 82. Kf5 {[%clk 0:00:08.2]} 82... e4 {[%clk 0:00:05.5]} 83. Re7
{[%clk 0:00:08.4]} 83... Nf2 {[%clk 0:00:05.8]} 84. Bf6 {[%clk 0:00:08.3]} 84...
Kf3 {[%clk 0:00:06.3]} 85. Bh4 {[%clk 0:00:08.4]} 85... Ng4 {[%clk 0:00:05.1]}
86. Rxe4 {[%clk 0:00:06]} 86... Nh6+ {[%clk 0:00:05.4]} 87. Ke5 {[%clk
0:00:06.4]} 87... Ng4+ {[%clk 0:00:05]} 88. Kd4 {[%clk 0:00:05.8]} 88... Nh6
{[%clk 0:00:03.9]} 89. Bd8 {[%clk 0:00:05.6]} 89... Nf5+ {[%clk 0:00:04.2]} 90.
Ke5 {[%clk 0:00:05.5]} 90... Ne3 {[%clk 0:00:04.3]} 91. Rf4+ {[%clk 0:00:05.4]}
91... Ke2 {[%clk 0:00:05.2]} 92. Bb6 {[%clk 0:00:05.5]} 92... Nc2 {[%clk
0:00:05.2]} 93. Rf2+ {[%clk 0:00:05.5]} 93... Kd3 {[%clk 0:00:05.5]} 94. Kd5
{[%clk 0:00:05.8]} 94... Nb4+ {[%clk 0:00:04.6]} 95. Kc5 {[%clk 0:00:06.3]}
95... Nc2 {[%clk 0:00:05.5]} 96. Kb5 {[%clk 0:00:06.4]} 96... Na3+ {[%clk
0:00:04.8]} 97. Ka4 {[%clk 0:00:06.6]} 97... Nc2 {[%clk 0:00:05.7]} 98. Kb3
{[%clk 0:00:06.7]} 98... Ne1 {[%clk 0:00:05]} 99. Rh2 {[%clk 0:00:05.2]} 99...
Nf3 {[%clk 0:00:04.5]} 100. Rh3 {[%clk 0:00:05.4]} 100... Ke4 {[%clk 0:00:04.7]}
101. Rh1 {[%clk 0:00:04.1]} 101... Nd2+ {[%clk 0:00:04.7]} 102. Kc2 {[%clk
0:00:03.8]} 102... Nf3 {[%clk 0:00:05.6]} 103. Ba5 {[%clk 0:00:04]} 103... Nd4+
{[%clk 0:00:05.5]} 104. Kd2 {[%clk 0:00:04]} 104... Nb3+ {[%clk 0:00:05.5]} 105.
Kc3 {[%clk 0:00:03.8]} 105... Nxa5 {[%clk 0:00:04.7]} 106. Rh4+ {[%clk 0:00:04]}
106... Kf3 {[%clk 0:00:04.6]} 107. Rh6 {[%clk 0:00:03.6]} 107... Kf4 {[%clk
0:00:01.8]} 108. Kb4 {[%clk 0:00:03]} 108... Nb7 {[%clk 0:00:02.4]} 109. Kb5
{[%clk 0:00:03.4]} 109... Nd8 {[%clk 0:00:02.6]} 110. Kb6 {[%clk 0:00:01.5]}
110... Kg5 {[%clk 0:00:02.8]} 111. Rd6 {[%clk 0:00:01.2]} 111... Nf7 {[%clk
0:00:03.1]} 112. Rd7 {[%clk 0:00:01.6]} 112... Ne5 {[%clk 0:00:03.4]} 113. Kc5
{[%clk 0:00:02.5]} 113... Nxd7+ {[%clk 0:00:03.3]} 1/2-1/2

[Event "Early-Titled-Tuesday-Blitz-October-10-2023"]
[Site "Chess.com"]
[Date "2023.10.10"]
[Round "11"]
[White "cande_francisco"]
[Black "inagreV"]
[Result "1-0"]
[WhiteElo "2534"]
[BlackElo "2310"]
[TimeControl "180+1"]
[EndTime "9:59:39 PDT"]
[Termination "cande_francisco won by resignation"]

1. e4 {[%clk 0:03:00.9]} 1... c6 {[%clk 0:02:59.6]} 2. d4 {[%clk 0:03:01]} 2...
d5 {[%clk 0:03:00.2]} 3. e5 {[%clk 0:03:01.6]} 3... Bf5 {[%clk 0:03:00]} 4. h4
{[%clk 0:03:02]} 4... h5 {[%clk 0:03:00.3]} 5. Bg5 {[%clk 0:03:02.3]} 5... Qb6
{[%clk 0:02:59.8]} 6. Bd3 {[%clk 0:03:02.6]} 6... Qxd4 {[%clk 0:02:59.9]} 7. Nf3
{[%clk 0:03:02.8]} 7... Qg4 {[%clk 0:03:00]} 8. Bxf5 {[%clk 0:03:01.1]} 8...
Qxf5 {[%clk 0:03:00.9]} 9. c4 {[%clk 0:03:01.3]} 9... f6 {[%clk 0:03:00.3]} 10.
exf6 {[%clk 0:02:55.7]} 10... exf6 {[%clk 0:02:58.4]} 11. Be3 {[%clk 0:02:55]}
11... Bb4+ {[%clk 0:02:57]} 12. Nc3 {[%clk 0:02:52.4]} 12... Ne7 {[%clk
0:02:56.6]} 13. O-O {[%clk 0:02:49.8]} 13... Bxc3 {[%clk 0:02:36.8]} 14. bxc3
{[%clk 0:02:50.7]} 14... O-O {[%clk 0:02:36.6]} 15. Bc5 {[%clk 0:02:47.3]} 15...
Rf7 {[%clk 0:02:16.9]} 16. Re1 {[%clk 0:02:43.8]} 16... Ng6 {[%clk 0:02:01.7]}
17. Re8+ {[%clk 0:02:43]} 17... Kh7 {[%clk 0:02:01.9]} 18. Ng5+ {[%clk
0:02:42.9]} 18... Qxg5 {[%clk 0:01:57]} 19. hxg5 {[%clk 0:02:42.9]} 1-0

[Event "Early-Titled-Tuesday-Blitz-October-10-2023"]
[Site "Chess.com"]
[Date "2023.10.10"]
[Round "11"]
[White "Quattroporte300"]
[Black "Boxerandchessplayer"]
[Result "1-0"]
[WhiteElo "2373"]
[BlackElo "2175"]
[TimeControl "180+1"]
[EndTime "9:59:41 PDT"]
[Termination "Quattroporte300 won by resignation"]

1. e4 {[%clk 0:03:00.9]} 1... e6 {[%clk 0:03:00.9]} 2. d4 {[%clk 0:02:57.2]}
2... d5 {[%clk 0:03:01.8]} 3. Nd2 {[%clk 0:02:57.7]} 3... dxe4 {[%clk
0:02:57.5]} 4. Nxe4 {[%clk 0:02:56.8]} 4... Nd7 {[%clk 0:02:58.4]} 5. Nf3 {[%clk
0:02:56.2]} 5... Ngf6 {[%clk 0:02:59.3]} 6. Nxf6+ {[%clk 0:02:56.3]} 6... Nxf6
{[%clk 0:02:58.7]} 7. Bd3 {[%clk 0:02:55.7]} 7... Be7 {[%clk 0:02:56.6]} 8. O-O
{[%clk 0:02:56]} 8... O-O {[%clk 0:02:57.5]} 9. Bf4 {[%clk 0:02:55.3]} 9... b6
{[%clk 0:02:57.1]} 10. Qe2 {[%clk 0:02:54.5]} 10... Bb7 {[%clk 0:02:57]} 11.
Rad1 {[%clk 0:02:54.5]} 11... Rc8 {[%clk 0:02:55.8]} 12. Rfe1 {[%clk 0:02:52.2]}
12... Nd5 {[%clk 0:02:52.3]} 13. Qe4 {[%clk 0:02:43.2]} 13... g6 {[%clk
0:02:51.6]} 14. Bh6 {[%clk 0:02:42.8]} 14... Re8 {[%clk 0:02:51.7]} 15. c3
{[%clk 0:02:32.5]} 15... Rb8 {[%clk 0:02:47.2]} 16. Qg4 {[%clk 0:02:30.6]} 16...
Nf6 {[%clk 0:02:47.1]} 17. Qh3 {[%clk 0:02:29.9]} 17... Bf8 {[%clk 0:02:38.2]}
18. Bg5 {[%clk 0:02:26.6]} 18... Be7 {[%clk 0:02:35]} 19. Ne5 {[%clk 0:02:25.7]}
19... Nd7 {[%clk 0:02:29.7]} 20. Nxf7 {[%clk 0:02:15.7]} 1-0

[Event "Early-Titled-Tuesday-Blitz-October-10-2023"]
[Site "Chess.com"]
[Date "2023.10.10"]
[Round "11"]
[White "ChessQueen"]
[Black "LangesNasenhaar"]
[Result "1-0"]
[WhiteElo "2713"]
[BlackElo "2554"]
[TimeControl "180+1"]
[EndTime "9:59:53 PDT"]
[Termination "ChessQueen won by checkmate"]

1. d4 {[%clk 0:03:00.9]} 1... g6 {[%clk 0:02:58.3]} 2. e4 {[%clk 0:03:00.3]}
2... Bg7 {[%clk 0:02:58.6]} 3. Nc3 {[%clk 0:03:00.7]} 3... c6 {[%clk 0:02:58.6]}
4. Bc4 {[%clk 0:02:58.1]} 4... e6 {[%clk 0:02:54.7]} 5. e5 {[%clk 0:02:40.4]}
5... b5 {[%clk 0:02:46.9]} 6. Bb3 {[%clk 0:02:38.4]} 6... Ne7 {[%clk 0:02:37.2]}
7. Ne4 {[%clk 0:02:32.1]} 7... O-O {[%clk 0:02:31.7]} 8. Bg5 {[%clk 0:02:26.9]}
8... Re8 {[%clk 0:02:31.6]} 9. Qf3 {[%clk 0:02:18.1]} 9... Qb6 {[%clk
0:02:11.1]} 10. Nd6 {[%clk 0:02:09.1]} 10... Qxd4 {[%clk 0:02:10.6]} 11. Qxf7+
{[%clk 0:02:06.8]} 11... Kh8 {[%clk 0:02:09.6]} 12. Qxe8+ {[%clk 0:02:06.6]}
12... Ng8 {[%clk 0:02:05.5]} 13. Nf7# {[%clk 0:02:05.8]} 1-0

[Event "Early-Titled-Tuesday-Blitz-October-10-2023"]
[Site "Chess.com"]
[Date "2023.10.10"]
[Round "11"]
[White "Javylavilla"]
[Black "DarZay"]
[Result "1-0"]
[WhiteElo "2370"]
[BlackElo "2227"]
[TimeControl "180+1"]
[EndTime "10:00:31 PDT"]
[Termination "Javylavilla won by resignation"]

1. e4 {[%clk 0:03:00.9]} 1... c5 {[%clk 0:02:47.4]} 2. Nf3 {[%clk 0:02:59.3]}
2... Nc6 {[%clk 0:02:44.9]} 3. Bb5 {[%clk 0:02:58.9]} 3... g6 {[%clk 0:02:44.4]}
4. Bxc6 {[%clk 0:02:59.1]} 4... dxc6 {[%clk 0:02:42.6]} 5. d3 {[%clk 0:02:59]}
5... Bg7 {[%clk 0:02:42.4]} 6. h3 {[%clk 0:02:58.3]} 6... e5 {[%clk 0:02:38.2]}
7. Be3 {[%clk 0:02:57.1]} 7... b6 {[%clk 0:02:37.9]} 8. Qd2 {[%clk 0:02:56.7]}
8... Qd6 {[%clk 0:02:34.4]} 9. Nc3 {[%clk 0:02:55.9]} 9... Nf6 {[%clk
0:02:33.4]} 10. Bh6 {[%clk 0:02:54.3]} 10... Bxh6 {[%clk 0:02:29.5]} 11. Qxh6
{[%clk 0:02:55.2]} 11... Bd7 {[%clk 0:02:29.1]} 12. O-O-O {[%clk 0:02:47.9]}
12... O-O-O {[%clk 0:02:28.5]} 13. Ng5 {[%clk 0:02:41.5]} 13... Rhf8 {[%clk
0:02:27]} 14. Qh4 {[%clk 0:02:30.2]} 14... h6 {[%clk 0:02:18.3]} 15. Qxh6 {[%clk
0:02:18.9]} 15... Rh8 {[%clk 0:02:17.8]} 16. Qg7 {[%clk 0:02:19]} 16... Rdf8
{[%clk 0:02:07.6]} 17. Nxf7 {[%clk 0:02:16.3]} 17... Qe7 {[%clk 0:02:07]} 18.
Qxh8 {[%clk 0:02:06.5]} 18... Rxh8 {[%clk 0:02:02.2]} 19. Nxh8 {[%clk
0:02:07.4]} 19... Qh7 {[%clk 0:02:00.2]} 20. Nxg6 {[%clk 0:02:06.8]} 20... Qxg6
{[%clk 0:02:00.5]} 21. g4 {[%clk 0:02:06.7]} 21... Qf5 {[%clk 0:01:59.4]} 22.
exf5 {[%clk 0:02:05.4]} 1-0

[Event "Early-Titled-Tuesday-Blitz-October-10-2023"]
[Site "Chess.com"]
[Date "2023.10.10"]
[Round "11"]
[White "maracayo"]
[Black "SlavenPastar"]
[Result "0-1"]
[WhiteElo "2372"]
[BlackElo "2546"]
[TimeControl "180+1"]
[EndTime "10:00:32 PDT"]
[Termination "SlavenPastar won by resignation"]

1. e4 {[%clk 0:03:00.9]} 1... b6 {[%clk 0:03:00]} 2. d4 {[%clk 0:02:58.9]} 2...
Bb7 {[%clk 0:03:00.7]} 3. Nd2 {[%clk 0:02:58.3]} 3... e6 {[%clk 0:03:00.3]} 4.
Ngf3 {[%clk 0:02:57.9]} 4... Nf6 {[%clk 0:02:59.8]} 5. Bd3 {[%clk 0:02:56.8]}
5... d5 {[%clk 0:03:00.4]} 6. e5 {[%clk 0:02:54.5]} 6... Ne4 {[%clk 0:03:00.6]}
7. Qe2 {[%clk 0:02:53.3]} 7... Nxd2 {[%clk 0:03:00.6]} 8. Bxd2 {[%clk
0:02:52.9]} 8... c5 {[%clk 0:03:01.5]} 9. c3 {[%clk 0:02:50.9]} 9... Be7 {[%clk
0:03:01.9]} 10. h4 {[%clk 0:02:49.7]} 10... a5 {[%clk 0:03:00.8]} 11. Bb5+
{[%clk 0:02:45]} 11... Bc6 {[%clk 0:03:00.8]} 12. a4 {[%clk 0:02:44.1]} 12...
Bxb5 {[%clk 0:03:00.1]} 13. axb5 {[%clk 0:02:41.9]} 13... Qd7 {[%clk 0:03:00.6]}
14. b3 {[%clk 0:02:10.8]} 14... Qc7 {[%clk 0:02:48.9]} 15. Rh3 {[%clk
0:02:06.8]} 15... cxd4 {[%clk 0:02:39.1]} 16. cxd4 {[%clk 0:02:02.3]} 16... Qc2
{[%clk 0:02:38.1]} 17. Bg5 {[%clk 0:01:16.9]} 17... Qc3+ {[%clk 0:02:32.4]} 0-1

[Event "Early-Titled-Tuesday-Blitz-October-10-2023"]
[Site "Chess.com"]
[Date "2023.10.10"]
[Round "11"]
[White "Doomfist26"]
[Black "PeshkaCh"]
[Result "0-1"]
[WhiteElo "2630"]
[BlackElo "2812"]
[TimeControl "180+1"]
[EndTime "10:00:34 PDT"]
[Termination "PeshkaCh won by resignation"]

1. e4 {[%clk 0:03:00.9]} 1... e5 {[%clk 0:02:57.9]} 2. Nf3 {[%clk 0:03:00.5]}
2... Nc6 {[%clk 0:02:58.4]} 3. d4 {[%clk 0:02:57.5]} 3... exd4 {[%clk
0:02:58.5]} 4. Ng5 {[%clk 0:02:58.1]} 4... d5 {[%clk 0:02:36.4]} 5. Bb5 {[%clk
0:02:39.8]} 5... Be7 {[%clk 0:02:30.9]} 6. Nf3 {[%clk 0:02:07]} 6... dxe4 {[%clk
0:02:29.8]} 7. Nxd4 {[%clk 0:02:06.5]} 7... Bd7 {[%clk 0:02:30.1]} 8. Nxc6
{[%clk 0:02:00]} 8... bxc6 {[%clk 0:02:26.9]} 9. Bc4 {[%clk 0:01:59.9]} 9... Nf6
{[%clk 0:02:27.5]} 10. O-O {[%clk 0:01:59.4]} 10... O-O {[%clk 0:02:28]} 11. Nc3
{[%clk 0:02:00]} 11... Bf5 {[%clk 0:02:27.9]} 12. Qe2 {[%clk 0:02:00.1]} 12...
Qd4 {[%clk 0:02:21.9]} 13. Be3 {[%clk 0:01:52.9]} 13... Qe5 {[%clk 0:02:21.3]}
14. f4 {[%clk 0:01:39.4]} 14... exf3 {[%clk 0:02:20.3]} 15. Qxf3 {[%clk
0:01:39.9]} 15... Ng4 {[%clk 0:02:17.8]} 0-1

[Event "Early-Titled-Tuesday-Blitz-October-10-2023"]
[Site "Chess.com"]
[Date "2023.10.10"]
[Round "11"]
[White "KamlaPasand"]
[Black "FERNANDEZL1983"]
[Result "0-1"]
[WhiteElo "2446"]
[BlackElo "2511"]
[TimeControl "180+1"]
[EndTime "10:01:15 PDT"]
[Termination "FERNANDEZL1983 won by resignation"]

1. e4 {[%clk 0:01:31.8]} 1... c5 {[%clk 0:02:57]} 2. Nf3 {[%clk 0:01:32.2]} 2...
Nc6 {[%clk 0:02:57.6]} 3. d4 {[%clk 0:01:33.1]} 3... cxd4 {[%clk 0:02:57.4]} 4.
Nxd4 {[%clk 0:01:31.3]} 4... g6 {[%clk 0:02:58.1]} 5. Nc3 {[%clk 0:01:30.9]}
5... Bg7 {[%clk 0:02:57.7]} 6. Be3 {[%clk 0:01:31.3]} 6... Nf6 {[%clk
0:02:58.2]} 7. Bc4 {[%clk 0:01:30.1]} 7... O-O {[%clk 0:02:58.7]} 8. f3 {[%clk
0:01:30]} 8... Qb6 {[%clk 0:02:45.2]} 9. Bb3 {[%clk 0:01:30.1]} 9... Nxe4 {[%clk
0:02:42.4]} 10. Nd5 {[%clk 0:01:30.2]} 10... Qa5+ {[%clk 0:02:40.2]} 11. c3
{[%clk 0:01:30.6]} 11... Nf6 {[%clk 0:02:37.2]} 12. Nxc6 {[%clk 0:01:30.4]}
12... dxc6 {[%clk 0:02:36.9]} 13. Nxe7+ {[%clk 0:01:31.1]} 13... Kh8 {[%clk
0:02:37.4]} 14. Nxc8 {[%clk 0:01:32]} 14... Raxc8 {[%clk 0:02:37.6]} 15. O-O
{[%clk 0:01:31.8]} 15... Rcd8 {[%clk 0:02:30.3]} 16. Qc2 {[%clk 0:01:29.3]}
16... Nd5 {[%clk 0:02:25]} 17. Bf2 {[%clk 0:01:28.7]} 17... Nf4 {[%clk
0:02:18.1]} 18. Rad1 {[%clk 0:01:26.8]} 18... Qg5 {[%clk 0:02:16.6]} 19. Bg3
{[%clk 0:01:25.5]} 19... h5 {[%clk 0:02:11.9]} 20. Rd7 {[%clk 0:01:24.9]} 20...
Rxd7 {[%clk 0:02:11]} 0-1